[Event "Titled Tuesday Blitz November 29 Early 2022"]
[White "Putnam, Liam"]
[Black "Przybylski, Wojciech"]
[WhiteFideId "30938279"]
[BlackFideId "1117599"]
[WhiteElo "2082"]
[BlackElo "2221"]
[Result "1-0"]
[Round "03"]
[TimeControl "180+1"]
[Date "2022.11.30"]
[WhiteClock "0:01:06"]
[BlackClock "0:00:02"]

1. e4 {[%clk 0:03:00]}  e5 {[%clk 0:02:57]} 2. Nf3 {[%clk 0:03:00]}  Nf6 {[%clk 0:02:56]} 3. Nxe5 {[%clk 0:03:00]}  d6 {[%clk 0:02:57]} 4. Nf3 {[%clk 0:03:00]}  Nxe4 {[%clk 0:02:57]} 5. d4 {[%clk 0:03:01]}  d5 {[%clk 0:02:57]} 6. Bd3 {[%clk 0:03:01]}  Bd6 {[%clk 0:02:57]} 7. O-O {[%clk 0:03:02]}  O-O {[%clk 0:02:57]} 8. Re1 {[%clk 0:03:02]}  Bf5 {[%clk 0:02:56]} 9. c4 {[%clk 0:03:02]}  c6 {[%clk 0:02:56]} 10. Nc3 {[%clk 0:03:03]}  Nxc3 {[%clk 0:02:55]} 11. bxc3 {[%clk 0:03:04]}  Bxd3 {[%clk 0:02:55]} 12. Qxd3 {[%clk 0:03:04]}  dxc4 {[%clk 0:02:55]} 13. Qxc4 {[%clk 0:03:05]}  Nd7 {[%clk 0:02:55]} 14. Rb1 {[%clk 0:03:04]}  Qc7 {[%clk 0:02:54]} 15. Bd2 {[%clk 0:02:57]}  b5 {[%clk 0:02:51]} 16. Qd3 {[%clk 0:02:55]}  a6 {[%clk 0:02:50]} 17. h3 {[%clk 0:02:51]}  h6 {[%clk 0:02:49]} 18. Nh4 {[%clk 0:02:50]}  Rfe8 {[%clk 0:02:47]} 19. Nf5 {[%clk 0:02:50]}  Bf8 {[%clk 0:02:47]} 20. Qf3 {[%clk 0:02:47]}  c5 {[%clk 0:02:35]} 21. Bf4 {[%clk 0:02:42]}  Qb6 {[%clk 0:02:35]} 22. Qg4 {[%clk 0:02:37]}  Nf6 {[%clk 0:01:20]} 23. Nxh6+ {[%clk 0:02:14]}  Kh7 {[%clk 0:01:19]} 24. Qf5+ {[%clk 0:02:14]}  g6 {[%clk 0:01:19]} 25. Qg5 {[%clk 0:02:15]}  cxd4 {[%clk 0:00:44]} 26. cxd4 {[%clk 0:01:35]}  Ne4 {[%clk 0:00:07]} 27. Qh4 {[%clk 0:01:23]}  Bxh6 {[%clk 0:00:03]} 28. Bxh6 {[%clk 0:01:15]}  Qc6 {[%clk 0:00:01]} 29. Bg5+ {[%clk 0:01:13]}  Kg8 {[%clk 0:00:02]} 30. Rbc1 {[%clk 0:01:10]}  Nxg5 {[%clk 0:00:02]} 31. Rxc6 {[%clk 0:01:08]}  Rxe1+ {[%clk 0:00:02]} 32. Kh2 {[%clk 0:01:08]}  Ne6 {[%clk 0:00:02]} 33. d5 {[%clk 0:01:06]}  Ng7 {[%clk 0:00:02]} 34. Rd6 {[%clk 0:01:04]}  Nf5 {[%clk 0:00:02]} 35. Rd8+ {[%clk 0:01:04]}  Rxd8 {[%clk 0:00:02]} 36. Qxd8+ {[%clk 0:01:05]}  Kg7 {[%clk 0:00:02]} 37. d6 {[%clk 0:01:05]}  Rd1 {[%clk 0:00:03]} 38. d7 {[%clk 0:01:05]}  Rd2 {[%clk 0:00:03]} 39. Qe8 {[%clk 0:01:05]}  Nd6 {[%clk 0:00:01]} 40. d8=Q {[%clk 0:01:05]}  Nxe8 {[%clk 0:00:01]} 41. Qxd2 {[%clk 0:01:06]}  Nf6 {[%clk 0:00:02]} 42. Qd4 {[%clk 0:01:06]} 1-0


[Site "https://www.chess.com"]

[Event "Titled Tuesday Blitz November 29 Early 2022"]
[White "Putri, Regita Desyari"]
[Black "Shyaamnikhil P"]
[WhiteFideId "7109083"]
[BlackFideId "5024218"]
[WhiteElo "1930"]
[BlackElo "2389"]
[Result "0-1"]
[Round "03"]
[TimeControl "180+1"]
[Date "2022.11.30"]
[WhiteClock "0:00:17"]
[BlackClock "0:00:29"]

1. e4 {[%clk 0:02:59]}  c6 {[%clk 0:02:36]} 2. d4 {[%clk 0:02:59]}  d5 {[%clk 0:02:36]} 3. exd5 {[%clk 0:02:59]}  cxd5 {[%clk 0:02:35]} 4. c4 {[%clk 0:03:00]}  Nf6 {[%clk 0:02:33]} 5. Nf3 {[%clk 0:02:58]}  g6 {[%clk 0:02:33]} 6. cxd5 {[%clk 0:02:57]}  Bg7 {[%clk 0:02:33]} 7. Nc3 {[%clk 0:02:56]}  O-O {[%clk 0:02:33]} 8. Be2 {[%clk 0:02:38]}  Nxd5 {[%clk 0:02:31]} 9. O-O {[%clk 0:02:35]}  Nc6 {[%clk 0:02:30]} 10. Bc4 {[%clk 0:02:32]}  Be6 {[%clk 0:02:27]} 11. Bb3 {[%clk 0:02:25]}  Na5 {[%clk 0:01:57]} 12. Nxd5 {[%clk 0:02:13]}  Bxd5 {[%clk 0:01:56]} 13. Bxd5 {[%clk 0:02:14]}  Qxd5 {[%clk 0:01:55]} 14. Bd2 {[%clk 0:02:14]}  Nc4 {[%clk 0:01:50]} 15. Bc3 {[%clk 0:02:15]}  Rfd8 {[%clk 0:01:49]} 16. Qb3 {[%clk 0:02:10]}  Rd6 {[%clk 0:01:45]} 17. Rad1 {[%clk 0:02:02]}  Rb6 {[%clk 0:01:45]} 18. Qc2 {[%clk 0:01:57]}  Rc8 {[%clk 0:01:44]} 19. Qe2 {[%clk 0:01:56]}  e6 {[%clk 0:01:41]} 20. Rfe1 {[%clk 0:01:56]}  Rbc6 {[%clk 0:01:39]} 21. Ne5 {[%clk 0:01:53]}  Nxe5 {[%clk 0:01:37]} 22. dxe5 {[%clk 0:01:54]}  Qxa2 {[%clk 0:01:36]} 23. Rd7 {[%clk 0:01:49]}  R6c7 {[%clk 0:01:28]} 24. Rd3 {[%clk 0:01:46]}  b5 {[%clk 0:01:24]} 25. Red1 {[%clk 0:01:39]}  Rxc3 {[%clk 0:01:20]} 26. Rxc3 {[%clk 0:01:34]}  Rxc3 {[%clk 0:01:19]} 27. Qxb5 {[%clk 0:01:32]}  Rc8 {[%clk 0:01:17]} 28. Qb7 {[%clk 0:01:31]}  Rf8 {[%clk 0:01:15]} 29. Qb5 {[%clk 0:01:28]}  a6 {[%clk 0:01:12]} 30. Qe2 {[%clk 0:01:25]}  Rb8 {[%clk 0:01:07]} 31. h4 {[%clk 0:01:23]}  Qxb2 {[%clk 0:01:00]} 32. Qxa6 {[%clk 0:01:23]}  Qxe5 {[%clk 0:00:58]} 33. Qa7 {[%clk 0:01:22]}  h5 {[%clk 0:00:57]} 34. g3 {[%clk 0:01:22]}  Rf8 {[%clk 0:00:55]} 35. Rd7 {[%clk 0:01:20]}  Bf6 {[%clk 0:00:55]} 36. Kg2 {[%clk 0:01:19]}  Kg7 {[%clk 0:00:55]} 37. Kh2 {[%clk 0:01:16]}  g5 {[%clk 0:00:55]} 38. hxg5 {[%clk 0:01:16]}  Qxg5 {[%clk 0:00:56]} 39. Kg2 {[%clk 0:01:17]}  h4 {[%clk 0:00:56]} 40. Qa4 {[%clk 0:00:57]}  hxg3 {[%clk 0:00:53]} 41. fxg3 {[%clk 0:00:58]}  Rd8 {[%clk 0:00:52]} 42. Rxd8 {[%clk 0:00:57]}  Bxd8 {[%clk 0:00:53]} 43. Qb4 {[%clk 0:00:57]}  Be7 {[%clk 0:00:52]} 44. Qc4 {[%clk 0:00:57]}  Qd2+ {[%clk 0:00:51]} 45. Kh3 {[%clk 0:00:57]}  Qd5 {[%clk 0:00:50]} 46. Qg4+ {[%clk 0:00:57]}  Bg5 {[%clk 0:00:50]} 47. Kh2 {[%clk 0:00:55]}  f5 {[%clk 0:00:47]} 48. Qxg5+ {[%clk 0:00:54]}  Kf7 {[%clk 0:00:48]} 49. Qh5+ {[%clk 0:00:54]}  Ke7 {[%clk 0:00:48]} 50. Qh4+ {[%clk 0:00:53]}  Kd7 {[%clk 0:00:47]} 51. Qa4+ {[%clk 0:00:48]}  Qc6 {[%clk 0:00:45]} 52. Qd4+ {[%clk 0:00:48]}  Qd6 {[%clk 0:00:45]} 53. Qg7+ {[%clk 0:00:45]}  Kd8 {[%clk 0:00:43]} 54. Qf6+ {[%clk 0:00:42]}  Kc7 {[%clk 0:00:43]} 55. Qc3+ {[%clk 0:00:42]}  Qc6 {[%clk 0:00:43]} 56. Qe5+ {[%clk 0:00:42]}  Kb7 {[%clk 0:00:42]} 57. Qb2+ {[%clk 0:00:39]}  Qb6 {[%clk 0:00:42]} 58. Qg2+ {[%clk 0:00:37]}  Kb8 {[%clk 0:00:39]} 59. Qe2 {[%clk 0:00:35]}  Qc6 {[%clk 0:00:38]} 60. Qe5+ {[%clk 0:00:35]}  Ka7 {[%clk 0:00:37]} 61. Qa5+ {[%clk 0:00:35]}  Kb7 {[%clk 0:00:37]} 62. Qb4+ {[%clk 0:00:35]}  Ka6 {[%clk 0:00:37]} 63. Qd2 {[%clk 0:00:32]}  Qd5 {[%clk 0:00:35]} 64. Qe2+ {[%clk 0:00:30]}  Kb6 {[%clk 0:00:35]} 65. Qb2+ {[%clk 0:00:29]}  Kc5 {[%clk 0:00:35]} 66. Qc3+ {[%clk 0:00:29]}  Qc4 {[%clk 0:00:35]} 67. Qe5+ {[%clk 0:00:29]}  Kb4 {[%clk 0:00:36]} 68. Qb2+ {[%clk 0:00:28]}  Ka4 {[%clk 0:00:36]} 69. Qb8 {[%clk 0:00:25]}  Qe2+ {[%clk 0:00:33]} 70. Kh3 {[%clk 0:00:25]}  Qg4+ {[%clk 0:00:32]} 71. Kg2 {[%clk 0:00:25]}  Qe4+ {[%clk 0:00:32]} 72. Kh2 {[%clk 0:00:23]}  Ka3 {[%clk 0:00:30]} 73. Qd6+ {[%clk 0:00:18]}  Kb2 {[%clk 0:00:29]} 74. Qd2+ {[%clk 0:00:18]}  Qc2 {[%clk 0:00:28]} 75. Qxc2+ {[%clk 0:00:16]}  Kxc2 {[%clk 0:00:29]} 76. Kg2 {[%clk 0:00:17]}  Kd2 {[%clk 0:00:28]} 77. Kf3 {[%clk 0:00:18]}  e5 {[%clk 0:00:28]} 78. g4 {[%clk 0:00:16]}  fxg4+ {[%clk 0:00:28]} 79. Kxg4 {[%clk 0:00:17]}  e4 {[%clk 0:00:28]} 80. Kg3 {[%clk 0:00:17]}  e3 {[%clk 0:00:29]} 0-1


[Site "https://www.chess.com"]

[Event "Titled Tuesday Blitz November 29 Early 2022"]
[White "Rangel, Daniel"]
[Black "Zaksaite, Salomeja"]
[WhiteFideId "2124475"]
[BlackFideId "12801496"]
[WhiteElo "2225"]
[BlackElo "2079"]
[Result "1-0"]
[Round "03"]
[TimeControl "180+1"]
[Date "2022.11.30"]
[WhiteClock "0:00:34"]
[BlackClock "0:00:01"]

1. d4 {[%clk 0:03:00]}  Nf6 {[%clk 0:02:59]} 2. c4 {[%clk 0:03:01]}  g6 {[%clk 0:02:58]} 3. Nc3 {[%clk 0:03:02]}  d6 {[%clk 0:02:58]} 4. e4 {[%clk 0:03:02]}  Bg7 {[%clk 0:02:58]} 5. Nf3 {[%clk 0:03:02]}  O-O {[%clk 0:02:58]} 6. Be2 {[%clk 0:03:03]}  e5 {[%clk 0:02:55]} 7. O-O {[%clk 0:03:04]}  exd4 {[%clk 0:02:54]} 8. Nxd4 {[%clk 0:03:04]}  Nc6 {[%clk 0:02:53]} 9. Nxc6 {[%clk 0:03:02]}  bxc6 {[%clk 0:02:53]} 10. f3 {[%clk 0:03:02]}  Rb8 {[%clk 0:02:45]} 11. Qc2 {[%clk 0:02:55]}  d5 {[%clk 0:02:41]} 12. e5 {[%clk 0:02:44]}  Nd7 {[%clk 0:02:32]} 13. f4 {[%clk 0:02:44]}  Nc5 {[%clk 0:02:17]} 14. Rd1 {[%clk 0:02:38]}  Bf5 {[%clk 0:02:15]} 15. Qd2 {[%clk 0:02:31]}  Ne4 {[%clk 0:01:19]} 16. Nxe4 {[%clk 0:02:29]}  Bxe4 {[%clk 0:01:19]} 17. Bd3 {[%clk 0:02:25]}  Bxd3 {[%clk 0:01:05]} 18. Qxd3 {[%clk 0:02:26]}  dxc4 {[%clk 0:01:05]} 19. Qe2 {[%clk 0:02:26]}  Qe7 {[%clk 0:01:01]} 20. Qxc4 {[%clk 0:02:25]}  Qe6 {[%clk 0:00:22]} 21. Qc2 {[%clk 0:02:17]}  f6 {[%clk 0:00:19]} 22. exf6 {[%clk 0:01:57]}  Bxf6 {[%clk 0:00:16]} 23. g3 {[%clk 0:01:52]}  Rfe8 {[%clk 0:00:15]} 24. Rb1 {[%clk 0:01:35]}  c5 {[%clk 0:00:10]} 25. Qxc5 {[%clk 0:01:04]}  Qe4 {[%clk 0:00:10]} 26. Qd5+ {[%clk 0:00:58]}  Qxd5 {[%clk 0:00:10]} 27. Rxd5 {[%clk 0:00:59]}  Re1+ {[%clk 0:00:10]} 28. Kf2 {[%clk 0:00:57]}  Rh1 {[%clk 0:00:09]} 29. Kg2 {[%clk 0:00:54]}  Re1 {[%clk 0:00:09]} 30. b3 {[%clk 0:00:52]}  Re2+ {[%clk 0:00:05]} 31. Kf3 {[%clk 0:00:48]}  Rxa2 {[%clk 0:00:04]} 32. h4 {[%clk 0:00:43]}  Rb6 {[%clk 0:00:02]} 33. Be3 {[%clk 0:00:41]}  Re6 {[%clk 0:00:02]} 34. Rc1 {[%clk 0:00:37]}  Ra3 {[%clk 0:00:01]} 35. Rd3 {[%clk 0:00:34]} 1-0


[Site "https://www.chess.com"]

[Event "Titled Tuesday Blitz November 29 Early 2022"]
[White "Remizov, Yaroslav"]
[Black "Dubov, Daniil"]
[WhiteFideId "34134015"]
[BlackFideId "24126055"]
[WhiteElo "2414"]
[BlackElo "2791"]
[Result "0-1"]
[Round "03"]
[TimeControl "180+1"]
[Date "2022.11.30"]
[WhiteClock "0:00:05"]
[BlackClock "0:01:42"]

1. d4 {[%clk 0:03:00]}  Nf6 {[%clk 0:02:59]} 2. Nf3 {[%clk 0:03:00]}  d5 {[%clk 0:02:59]} 3. c4 {[%clk 0:03:00]}  e6 {[%clk 0:02:59]} 4. Bg5 {[%clk 0:02:56]}  h6 {[%clk 0:02:58]} 5. Bh4 {[%clk 0:02:55]}  dxc4 {[%clk 0:02:57]} 6. Nc3 {[%clk 0:02:55]}  Be7 {[%clk 0:02:53]} 7. e3 {[%clk 0:02:54]}  c5 {[%clk 0:02:52]} 8. Bxc4 {[%clk 0:02:53]}  cxd4 {[%clk 0:02:51]} 9. exd4 {[%clk 0:02:54]}  O-O {[%clk 0:02:50]} 10. O-O {[%clk 0:02:53]}  Nc6 {[%clk 0:02:51]} 11. a3 {[%clk 0:02:38]}  Nh5 {[%clk 0:02:45]} 12. Bxe7 {[%clk 0:02:36]}  Nxe7 {[%clk 0:02:46]} 13. Ne5 {[%clk 0:02:25]}  Nf6 {[%clk 0:02:45]} 14. Rc1 {[%clk 0:02:21]}  b6 {[%clk 0:02:43]} 15. Qf3 {[%clk 0:02:00]}  Rb8 {[%clk 0:02:42]} 16. Rfd1 {[%clk 0:01:57]}  Bb7 {[%clk 0:02:42]} 17. Qh3 {[%clk 0:01:51]}  Ned5 {[%clk 0:02:40]} 18. Nxd5 {[%clk 0:01:49]}  Nxd5 {[%clk 0:02:37]} 19. Qg3 {[%clk 0:01:43]}  Rc8 {[%clk 0:02:36]} 20. Be2 {[%clk 0:01:35]}  Qg5 {[%clk 0:02:34]} 21. Qxg5 {[%clk 0:01:32]}  hxg5 {[%clk 0:02:35]} 22. Bf3 {[%clk 0:01:30]}  Rfd8 {[%clk 0:02:29]} 23. g3 {[%clk 0:01:22]}  f6 {[%clk 0:02:29]} 24. Nd3 {[%clk 0:01:09]}  Kf7 {[%clk 0:02:26]} 25. h3 {[%clk 0:00:59]}  Ke7 {[%clk 0:02:23]} 26. Kg2 {[%clk 0:00:59]}  a5 {[%clk 0:02:21]} 27. Rxc8 {[%clk 0:00:43]}  Rxc8 {[%clk 0:02:20]} 28. Rc1 {[%clk 0:00:44]}  Rxc1 {[%clk 0:02:18]} 29. Nxc1 {[%clk 0:00:44]}  Kd6 {[%clk 0:02:18]} 30. Ne2 {[%clk 0:00:38]}  Bc6 {[%clk 0:02:17]} 31. h4 {[%clk 0:00:32]}  g4 {[%clk 0:01:55]} 32. Bxg4 {[%clk 0:00:29]}  Ne3+ {[%clk 0:01:55]} 33. Kh3 {[%clk 0:00:23]}  Nd1 {[%clk 0:01:55]} 34. Kh2 {[%clk 0:00:11]}  Nxf2 {[%clk 0:01:49]} 35. Bh5 {[%clk 0:00:11]}  Nd3 {[%clk 0:01:47]} 36. b3 {[%clk 0:00:09]}  Bd5 {[%clk 0:01:47]} 37. Bg6 {[%clk 0:00:06]}  f5 {[%clk 0:01:46]} 38. g4 {[%clk 0:00:04]}  Bf3 {[%clk 0:01:42]} 39. gxf5 {[%clk 0:00:05]}  Bxe2 {[%clk 0:01:42]} 40. fxe6 {[%clk 0:00:04]}  Kxe6 {[%clk 0:01:42]} 41. Kg2 {[%clk 0:00:04]}  Nf4+ {[%clk 0:01:41]} 42. Kf2 {[%clk 0:00:05]}  Nxg6 {[%clk 0:01:42]} 43. Kxe2 {[%clk 0:00:05]}  Nxh4 {[%clk 0:01:42]} 0-1


[Site "https://www.chess.com"]

[Event "Titled Tuesday Blitz November 29 Early 2022"]
[White "Rian, Kapriaga"]
[Black "Stankovic, Ivan G"]
[WhiteFideId "7103263"]
[BlackFideId "902837"]
[WhiteElo "2072"]
[BlackElo "2226"]
[Result "1-0"]
[Round "03"]
[TimeControl "180+1"]
[Date "2022.11.30"]
[WhiteClock "0:00:21"]
[BlackClock "0:01:20"]

1. d4 {[%clk 0:03:00]}  d5 {[%clk 0:02:59]} 2. Nf3 {[%clk 0:03:00]}  Nf6 {[%clk 0:03:00]} 3. Bf4 {[%clk 0:03:00]}  c5 {[%clk 0:03:00]} 4. e3 {[%clk 0:03:00]}  Nc6 {[%clk 0:03:01]} 5. Nbd2 {[%clk 0:02:59]}  Qb6 {[%clk 0:02:59]} 6. dxc5 {[%clk 0:02:58]}  Qxc5 {[%clk 0:02:59]} 7. c4 {[%clk 0:02:54]}  d4 {[%clk 0:02:46]} 8. a3 {[%clk 0:02:32]}  e5 {[%clk 0:02:45]} 9. exd4 {[%clk 0:02:26]}  exd4 {[%clk 0:02:37]} 10. Bd3 {[%clk 0:02:13]}  Bg4 {[%clk 0:02:29]} 11. O-O {[%clk 0:02:08]}  O-O-O {[%clk 0:02:29]} 12. h3 {[%clk 0:02:02]}  Bh5 {[%clk 0:02:26]} 13. b4 {[%clk 0:01:58]}  Qe7 {[%clk 0:02:21]} 14. Re1 {[%clk 0:01:54]}  Qd7 {[%clk 0:02:20]} 15. Qc2 {[%clk 0:01:50]}  Bg6 {[%clk 0:02:13]} 16. Rad1 {[%clk 0:01:43]}  Bd6 {[%clk 0:02:12]} 17. Bxd6 {[%clk 0:01:30]}  Qxd6 {[%clk 0:02:12]} 18. Nb3 {[%clk 0:01:28]}  Rhe8 {[%clk 0:02:10]} 19. Rxe8 {[%clk 0:01:26]}  Rxe8 {[%clk 0:02:09]} 20. Bxg6 {[%clk 0:01:26]}  hxg6 {[%clk 0:02:08]} 21. Nbxd4 {[%clk 0:01:16]}  Nxd4 {[%clk 0:01:58]} 22. Rxd4 {[%clk 0:01:10]}  Qe6 {[%clk 0:01:58]} 23. c5 {[%clk 0:01:05]}  Qe2 {[%clk 0:01:55]} 24. Qa4 {[%clk 0:00:50]}  Kb8 {[%clk 0:01:51]} 25. c6 {[%clk 0:00:42]}  Ne4 {[%clk 0:01:28]} 26. c7+ {[%clk 0:00:41]}  Kxc7 {[%clk 0:01:28]} 27. Qd7+ {[%clk 0:00:24]}  Kb6 {[%clk 0:01:26]} 28. Rd6+ {[%clk 0:00:22]}  Nxd6 {[%clk 0:01:25]} 29. Qxd6+ {[%clk 0:00:22]}  Kb5 {[%clk 0:01:20]} 30. Nd4+ {[%clk 0:00:21]}  Ka4 {[%clk 0:01:20]} 31. Nxe2 {[%clk 0:00:21]} 1-0


[Site "https://www.chess.com"]

[Event "Titled Tuesday Blitz November 29 Early 2022"]
[White "Rios Escobar, Adan"]
[Black "Melikyan, Gnel"]
[WhiteFideId "3403645"]
[BlackFideId "54109990"]
[WhiteElo "2330"]
[BlackElo "2138"]
[Result "0-1"]
[Round "03"]
[TimeControl "180+1"]
[Date "2022.11.30"]
[WhiteClock "0:00:12"]
[BlackClock "0:01:20"]

1. d4 {[%clk 0:03:00]}  d6 {[%clk 0:02:57]} 2. g3 {[%clk 0:03:00]}  Nf6 {[%clk 0:02:57]} 3. Bg2 {[%clk 0:03:00]}  c6 {[%clk 0:02:57]} 4. a4 {[%clk 0:03:00]}  g6 {[%clk 0:02:57]} 5. e4 {[%clk 0:03:00]}  Bg7 {[%clk 0:02:57]} 6. Ne2 {[%clk 0:03:00]}  O-O {[%clk 0:02:58]} 7. O-O {[%clk 0:02:57]}  Nbd7 {[%clk 0:02:55]} 8. Nbc3 {[%clk 0:02:55]}  Re8 {[%clk 0:02:55]} 9. h3 {[%clk 0:02:56]}  e5 {[%clk 0:02:54]} 10. Be3 {[%clk 0:02:56]}  exd4 {[%clk 0:02:51]} 11. Bxd4 {[%clk 0:02:57]}  Qc7 {[%clk 0:02:48]} 12. g4 {[%clk 0:02:51]}  b6 {[%clk 0:02:28]} 13. Ng3 {[%clk 0:02:50]}  Ba6 {[%clk 0:02:28]} 14. Re1 {[%clk 0:02:50]}  Bh6 {[%clk 0:02:23]} 15. Nce2 {[%clk 0:02:16]}  d5 {[%clk 0:02:03]} 16. exd5 {[%clk 0:01:47]}  Nxd5 {[%clk 0:02:01]} 17. Ne4 {[%clk 0:01:33]}  Ne5 {[%clk 0:01:56]} 18. g5 {[%clk 0:01:29]}  Bg7 {[%clk 0:01:54]} 19. b3 {[%clk 0:01:21]}  Rad8 {[%clk 0:01:51]} 20. c4 {[%clk 0:01:09]}  Nb4 {[%clk 0:01:45]} 21. Qb1 {[%clk 0:00:42]}  c5 {[%clk 0:01:36]} 22. Bc3 {[%clk 0:00:39]}  Bb7 {[%clk 0:01:34]} 23. Nf6+ {[%clk 0:00:35]}  Bxf6 {[%clk 0:01:33]} 24. gxf6 {[%clk 0:00:31]}  Bxg2 {[%clk 0:01:31]} 25. Bxe5 {[%clk 0:00:31]}  Qxe5 {[%clk 0:01:27]} 26. Kxg2 {[%clk 0:00:30]}  Nd3 {[%clk 0:01:25]} 27. Kf1 {[%clk 0:00:11]}  Nxe1 {[%clk 0:01:23]} 28. Qxe1 {[%clk 0:00:11]}  Qxf6 {[%clk 0:01:22]} 29. Rd1 {[%clk 0:00:09]}  Rxd1 {[%clk 0:01:21]} 30. Qxd1 {[%clk 0:00:10]}  Rd8 {[%clk 0:01:21]} 31. Qc1 {[%clk 0:00:10]}  Qf3 {[%clk 0:01:21]} 32. Ng1 {[%clk 0:00:02]}  Rd1+ {[%clk 0:01:20]} 33. Qxd1 {[%clk 0:00:01]}  Qxd1+ {[%clk 0:01:20]} 34. Kg2 {[%clk 0:00:02]}  Qxb3 {[%clk 0:01:21]} 35. h4 {[%clk 0:00:02]}  Qxc4 {[%clk 0:01:21]} 36. h5 {[%clk 0:00:03]}  Qxa4 {[%clk 0:01:21]} 37. h6 {[%clk 0:00:04]}  Qf4 {[%clk 0:01:21]} 38. f3 {[%clk 0:00:04]}  Qxh6 {[%clk 0:01:21]} 39. Ne2 {[%clk 0:00:05]}  Qe3 {[%clk 0:01:22]} 40. f4 {[%clk 0:00:06]}  Qxe2+ {[%clk 0:01:22]} 41. Kg3 {[%clk 0:00:07]}  Qe3+ {[%clk 0:01:22]} 42. Kg4 {[%clk 0:00:08]}  h5+ {[%clk 0:01:22]} 43. Kg5 {[%clk 0:00:08]}  Kg7 {[%clk 0:01:21]} 44. Kh4 {[%clk 0:00:07]}  Qxf4+ {[%clk 0:01:21]} 45. Kh3 {[%clk 0:00:07]}  Qg4+ {[%clk 0:01:21]} 46. Kh2 {[%clk 0:00:08]}  Kf6 {[%clk 0:01:19]} 47. Kh1 {[%clk 0:00:09]}  Kg5 {[%clk 0:01:20]} 48. Kh2 {[%clk 0:00:10]}  Kf4 {[%clk 0:01:20]} 49. Kh1 {[%clk 0:00:11]}  Kf3 {[%clk 0:01:20]} 50. Kh2 {[%clk 0:00:12]}  Qg2# {[%clk 0:01:20]} 0-1


[Site "https://www.chess.com"]

[Event "Titled Tuesday Blitz November 29 Early 2022"]
[White "Rose, Felix"]
[Black "Fernandez Garcia, Gumersindo"]
[WhiteFideId "5105722"]
[BlackFideId "24516740"]
[WhiteElo "2039"]
[BlackElo "2140"]
[Result "0-1"]
[Round "03"]
[TimeControl "180+1"]
[Date "2022.11.30"]
[WhiteClock "0:00:14"]
[BlackClock "0:00:31"]

1. e4 {[%clk 0:02:59]}  d6 {[%clk 0:02:28]} 2. d4 {[%clk 0:02:58]}  Nf6 {[%clk 0:02:28]} 3. Nc3 {[%clk 0:02:59]}  e5 {[%clk 0:02:29]} 4. dxe5 {[%clk 0:02:53]}  dxe5 {[%clk 0:02:30]} 5. Qxd8+ {[%clk 0:02:54]}  Kxd8 {[%clk 0:02:31]} 6. Bc4 {[%clk 0:02:54]}  Ke8 {[%clk 0:02:31]} 7. Bg5 {[%clk 0:02:49]}  Bb4 {[%clk 0:02:27]} 8. Bxf6 {[%clk 0:02:46]}  gxf6 {[%clk 0:02:27]} 9. Ne2 {[%clk 0:02:46]}  c6 {[%clk 0:02:23]} 10. a3 {[%clk 0:02:41]}  Ba5 {[%clk 0:02:18]} 11. O-O-O {[%clk 0:02:40]}  Nd7 {[%clk 0:02:14]} 12. Bb3 {[%clk 0:02:30]}  Nc5 {[%clk 0:02:04]} 13. Ba2 {[%clk 0:02:09]}  Ne6 {[%clk 0:01:57]} 14. g3 {[%clk 0:02:02]}  Bb6 {[%clk 0:01:47]} 15. f3 {[%clk 0:01:47]}  Ng5 {[%clk 0:01:42]} 16. Rd3 {[%clk 0:01:37]}  h5 {[%clk 0:01:12]} 17. Na4 {[%clk 0:01:14]}  Bc7 {[%clk 0:01:08]} 18. h4 {[%clk 0:01:11]}  Ne6 {[%clk 0:01:05]} 19. Bxe6 {[%clk 0:01:07]}  fxe6 {[%clk 0:00:53]} 20. g4 {[%clk 0:01:02]}  Ke7 {[%clk 0:00:48]} 21. g5 {[%clk 0:01:00]}  fxg5 {[%clk 0:00:40]} 22. hxg5 {[%clk 0:01:01]}  b5 {[%clk 0:00:39]} 23. Nac3 {[%clk 0:00:56]}  a5 {[%clk 0:00:33]} 24. Nd1 {[%clk 0:00:44]}  Ba6 {[%clk 0:00:32]} 25. Ng3 {[%clk 0:00:43]}  h4 {[%clk 0:00:31]} 26. Nf1 {[%clk 0:00:40]}  Rag8 {[%clk 0:00:30]} 27. Rg1 {[%clk 0:00:33]}  Bb6 {[%clk 0:00:30]} 28. Rg4 {[%clk 0:00:28]}  b4 {[%clk 0:00:31]} 29. axb4 {[%clk 0:00:13]}  Bxd3 {[%clk 0:00:30]} 30. cxd3 {[%clk 0:00:14]}  axb4 {[%clk 0:00:31]} 0-1


[Site "https://www.chess.com"]

[Event "Titled Tuesday Blitz November 29 Early 2022"]
[White "Rosenberg, Evan S"]
[Black "Ambartsumova, Karina"]
[WhiteFideId "2019299"]
[BlackFideId "4166299"]
[WhiteElo "2393"]
[BlackElo "2319"]
[Result "1-0"]
[Round "03"]
[TimeControl "180+1"]
[Date "2022.11.30"]
[WhiteClock "0:00:11"]
[BlackClock "0:00:01"]

1. d4 {[%clk 0:03:00]}  Nf6 {[%clk 0:02:59]} 2. Nf3 {[%clk 0:03:00]}  e6 {[%clk 0:02:59]} 3. g3 {[%clk 0:02:59]}  d5 {[%clk 0:02:56]} 4. Bg2 {[%clk 0:02:57]}  b5 {[%clk 0:02:56]} 5. a4 {[%clk 0:02:54]}  b4 {[%clk 0:02:56]} 6. c4 {[%clk 0:02:53]}  Be7 {[%clk 0:02:37]} 7. O-O {[%clk 0:02:41]}  O-O {[%clk 0:02:35]} 8. a5 {[%clk 0:02:34]}  c5 {[%clk 0:02:30]} 9. cxd5 {[%clk 0:02:08]}  exd5 {[%clk 0:02:27]} 10. dxc5 {[%clk 0:02:07]}  Na6 {[%clk 0:02:20]} 11. Ne5 {[%clk 0:01:49]}  Qc7 {[%clk 0:02:07]} 12. Bf4 {[%clk 0:01:41]}  Qxc5 {[%clk 0:02:07]} 13. Nd2 {[%clk 0:01:30]}  Bf5 {[%clk 0:01:46]} 14. Rc1 {[%clk 0:01:16]}  Qb5 {[%clk 0:01:42]} 15. Nc6 {[%clk 0:01:06]}  Rfe8 {[%clk 0:01:23]} 16. Nd4 {[%clk 0:00:57]}  Qd7 {[%clk 0:01:23]} 17. Rc6 {[%clk 0:00:54]}  Nc5 {[%clk 0:01:07]} 18. Rc7 {[%clk 0:00:53]}  Qd8 {[%clk 0:00:50]} 19. Nxf5 {[%clk 0:00:53]}  Bf8 {[%clk 0:00:51]} 20. Nb3 {[%clk 0:00:31]}  Ne6 {[%clk 0:00:48]} 21. Rc1 {[%clk 0:00:27]}  Nxf4 {[%clk 0:00:48]} 22. gxf4 {[%clk 0:00:27]}  Qd7 {[%clk 0:00:49]} 23. Nfd4 {[%clk 0:00:25]}  Ne4 {[%clk 0:00:35]} 24. e3 {[%clk 0:00:26]}  a6 {[%clk 0:00:24]} 25. Nf3 {[%clk 0:00:23]}  Qf5 {[%clk 0:00:22]} 26. Nbd4 {[%clk 0:00:20]}  Qd7 {[%clk 0:00:21]} 27. Ne5 {[%clk 0:00:20]}  Qb7 {[%clk 0:00:20]} 28. f3 {[%clk 0:00:19]}  Nf6 {[%clk 0:00:20]} 29. Kh1 {[%clk 0:00:19]}  Rad8 {[%clk 0:00:19]} 30. Rg1 {[%clk 0:00:19]}  g6 {[%clk 0:00:17]} 31. Bh3 {[%clk 0:00:19]}  Bg7 {[%clk 0:00:17]} 32. Qe1 {[%clk 0:00:19]}  Nh5 {[%clk 0:00:16]} 33. Qh4 {[%clk 0:00:18]}  Kh8 {[%clk 0:00:10]} 34. Nf5 {[%clk 0:00:17]}  Bf6 {[%clk 0:00:10]} 35. Qg4 {[%clk 0:00:16]}  Ng7 {[%clk 0:00:09]} 36. Nxg7 {[%clk 0:00:16]}  Bxg7 {[%clk 0:00:10]} 37. Rcd1 {[%clk 0:00:15]}  Bxe5 {[%clk 0:00:08]} 38. fxe5 {[%clk 0:00:15]}  Rxe5 {[%clk 0:00:08]} 39. Qd4 {[%clk 0:00:15]}  f6 {[%clk 0:00:09]} 40. f4 {[%clk 0:00:16]}  Rxe3 {[%clk 0:00:05]} 41. Qxf6+ {[%clk 0:00:14]}  Kg8 {[%clk 0:00:04]} 42. Qxd8+ {[%clk 0:00:14]}  Kg7 {[%clk 0:00:03]} 43. Qxd5 {[%clk 0:00:15]}  Qe7 {[%clk 0:00:02]} 44. Qd4+ {[%clk 0:00:13]}  Kh6 {[%clk 0:00:02]} 45. Bg4 {[%clk 0:00:11]}  Re4 {[%clk 0:00:01]} 46. Qf2 {[%clk 0:00:11]} 1-0


[Site "https://www.chess.com"]